[Event "*** SCC Grand Prix: Titled Tuesday Blitz"]
[Site "Chess.com"]
[Date "2020.06.02"]
[Round "9"]
[White "Alopekos"]
[Black "DaggiGretarsson"]
[Result "0-1"]
[WhiteElo "2502"]
[BlackElo "2668"]
[TimeControl "180+1"]
[EndTime "11:47:33 PDT"]
[Termination "DaggiGretarsson won on time"]

1. e4 {[%clk 0:03:00.9]} 1... g6 {[%clk 0:02:59.7]} 2. d4 {[%clk 0:03:00.7]}
2... Bg7 {[%clk 0:03:00]} 3. Nc3 {[%clk 0:03:01.3]} 3... d6 {[%clk 0:03:00.3]}
4. Be3 {[%clk 0:03:01.8]} 4... a6 {[%clk 0:02:59.9]} 5. Qd2 {[%clk 0:03:01.5]}
5... b5 {[%clk 0:02:59.4]} 6. O-O-O {[%clk 0:03:01.4]} 6... Nd7 {[%clk
0:02:57.4]} 7. Kb1 {[%clk 0:03:00]} 7... Bb7 {[%clk 0:02:56.3]} 8. f3 {[%clk
0:03:00.2]} 8... Rc8 {[%clk 0:02:55.8]} 9. h4 {[%clk 0:02:54.8]} 9... h5 {[%clk
0:02:55.4]} 10. Nh3 {[%clk 0:02:50.3]} 10... c5 {[%clk 0:02:55.3]} 11. dxc5
{[%clk 0:02:49.4]} 11... Nxc5 {[%clk 0:02:54.8]} 12. Bd4 {[%clk 0:02:49.6]}
12... Nf6 {[%clk 0:02:37.8]} 13. Ng5 {[%clk 0:02:11.8]} 13... O-O {[%clk
0:02:21.5]} 14. g4 {[%clk 0:01:48.5]} 14... hxg4 {[%clk 0:02:20.5]} 15. h5
{[%clk 0:01:48.6]} 15... gxh5 {[%clk 0:02:20.1]} 16. Qh2 {[%clk 0:01:28.9]}
16... e5 {[%clk 0:01:46.7]} 17. Bxe5 {[%clk 0:01:09.4]} 17... dxe5 {[%clk
0:01:46.6]} 18. Rxd8 {[%clk 0:01:09.9]} 18... Rfxd8 {[%clk 0:01:46.4]} 19. Nd5
{[%clk 0:00:57.7]} 19... Bxd5 {[%clk 0:01:42.8]} 20. exd5 {[%clk 0:00:56.7]}
20... Rxd5 {[%clk 0:01:42.9]} 21. Be2 {[%clk 0:00:45.2]} 21... e4 {[%clk
0:01:39.1]} 22. Nxe4 {[%clk 0:00:38.9]} 22... Ncxe4 {[%clk 0:01:38.8]} 23. fxe4
{[%clk 0:00:39.3]} 23... Nxe4 {[%clk 0:01:38.9]} 24. Bd3 {[%clk 0:00:34.7]}
24... Nc5 {[%clk 0:01:27.8]} 25. Qf4 {[%clk 0:00:10.6]} 25... Rcd8 {[%clk
0:01:15.7]} 26. Rf1 {[%clk 0:00:08.3]} 26... R8d7 {[%clk 0:01:08]} 27. Be2
{[%clk 0:00:07.8]} 27... Re5 {[%clk 0:01:01.6]} 28. Bd1 {[%clk 0:00:05.8]} 28...
Ne4 {[%clk 0:00:52.2]} 29. Rh1 {[%clk 0:00:03.5]} 29... Rd6 {[%clk 0:00:44.3]}
30. a3 {[%clk 0:00:03.6]} 30... Bh6 {[%clk 0:00:43.3]} 31. Qh2 {[%clk
0:00:01.9]} 31... f6 {[%clk 0:00:34.6]} 32. Qg2 {[%clk 0:00:01.9]} 32... Rd2
{[%clk 0:00:31.8]} 33. Qf1 {[%clk 0:00:02.3]} 33... Kg7 {[%clk 0:00:28.7]} 34.
Rg1 {[%clk 0:00:02.4]} 34... Bg5 {[%clk 0:00:28]} 35. Bxg4 {[%clk 0:00:02.5]}
35... hxg4 {[%clk 0:00:26.9]} 36. Rxg4 {[%clk 0:00:03.4]} 36... Rh2 {[%clk
0:00:23.3]} 37. Qd3 {[%clk 0:00:02.3]} 37... Nd2+ {[%clk 0:00:22.6]} 38. Ka2
{[%clk 0:00:02.3]} 38... Nc4 {[%clk 0:00:18.2]} 39. Qd7+ {[%clk 0:00:02.2]}
39... Kg6 {[%clk 0:00:17.9]} 40. Qc8 {[%clk 0:00:01.8]} 40... Re1 {[%clk
0:00:15.1]} 41. Qg8+ {[%clk 0:00:01.9]} 41... Kf5 {[%clk 0:00:15.4]} 42. Rd4
{[%clk 0:00:01.6]} 42... Rhh1 {[%clk 0:00:14.7]} 0-1

[Event "*** SCC Grand Prix: Titled Tuesday Blitz"]
[Site "Chess.com"]
[Date "2020.06.02"]
[Round "9"]
[White "crazy_but_lazy"]
[Black "Kira170"]
[Result "1-0"]
[WhiteElo "2434"]
[BlackElo "2612"]
[TimeControl "180+1"]
[EndTime "11:47:33 PDT"]
[Termination "crazy_but_lazy won on time"]

1. d4 {[%clk 0:03:00.9]} 1... Nf6 {[%clk 0:02:58.5]} 2. c4 {[%clk 0:03:00.6]}
2... c5 {[%clk 0:02:57.4]} 3. Nf3 {[%clk 0:02:59.7]} 3... cxd4 {[%clk
0:02:57.1]} 4. Nxd4 {[%clk 0:03:00.6]} 4... e5 {[%clk 0:02:57.2]} 5. Nb5 {[%clk
0:02:59.3]} 5... d5 {[%clk 0:02:57]} 6. cxd5 {[%clk 0:02:59.6]} 6... Bc5 {[%clk
0:02:57.1]} 7. g3 {[%clk 0:02:58.1]} 7... O-O {[%clk 0:02:55.1]} 8. N5c3 {[%clk
0:02:45.6]} 8... Qb6 {[%clk 0:02:19.9]} 9. e3 {[%clk 0:02:43.7]} 9... Bg4 {[%clk
0:02:19.1]} 10. Be2 {[%clk 0:02:40.9]} 10... Bh3 {[%clk 0:02:18.7]} 11. Bf1
{[%clk 0:02:41.1]} 11... Bg4 {[%clk 0:02:16.9]} 12. Be2 {[%clk 0:02:41.1]} 12...
Bh3 {[%clk 0:02:16.8]} 13. Bf1 {[%clk 0:02:41.2]} 13... Bxf1 {[%clk 0:02:12.3]}
14. Kxf1 {[%clk 0:02:42.1]} 14... e4 {[%clk 0:02:08.6]} 15. Nd2 {[%clk
0:02:39.3]} 15... Re8 {[%clk 0:02:06.2]} 16. a3 {[%clk 0:02:28.9]} 16... Qd6
{[%clk 0:02:04.7]} 17. b4 {[%clk 0:02:20.5]} 17... Bb6 {[%clk 0:02:02.6]} 18.
Nc4 {[%clk 0:02:20.1]} 18... Qc7 {[%clk 0:02:01]} 19. Qe2 {[%clk 0:02:16.4]}
19... Nbd7 {[%clk 0:01:58.2]} 20. Bb2 {[%clk 0:02:07]} 20... Ne5 {[%clk
0:01:57.1]} 21. Nxe5 {[%clk 0:01:53.5]} 21... Qxe5 {[%clk 0:01:58]} 22. Na4
{[%clk 0:01:44.9]} 22... Qf5 {[%clk 0:01:55.1]} 23. Bxf6 {[%clk 0:01:28]} 23...
Qxf6 {[%clk 0:01:56]} 24. Nxb6 {[%clk 0:01:18.6]} 24... Qxa1+ {[%clk 0:01:39.7]}
25. Kg2 {[%clk 0:01:18.7]} 25... Qxa3 {[%clk 0:01:39.7]} 26. Nxa8 {[%clk
0:01:16.8]} 26... Rxa8 {[%clk 0:01:40.6]} 27. Qc4 {[%clk 0:01:13.2]} 27... a5
{[%clk 0:01:08.4]} 28. bxa5 {[%clk 0:01:06.6]} 28... Qxa5 {[%clk 0:01:09.3]} 29.
Qxe4 {[%clk 0:01:05.4]} 29... h6 {[%clk 0:00:43.5]} 30. Rd1 {[%clk 0:01:00.2]}
30... Qc7 {[%clk 0:00:39.8]} 31. d6 {[%clk 0:00:44.1]} 31... Qd7 {[%clk
0:00:39.7]} 32. Qd5 {[%clk 0:00:38.6]} 32... Rb8 {[%clk 0:00:33.5]} 33. e4
{[%clk 0:00:34.1]} 33... b5 {[%clk 0:00:32.5]} 34. e5 {[%clk 0:00:34.1]} 34...
b4 {[%clk 0:00:27.6]} 35. Rd3 {[%clk 0:00:34.5]} 35... Rb5 {[%clk 0:00:20.7]}
36. Qa8+ {[%clk 0:00:30]} 36... Kh7 {[%clk 0:00:19.8]} 37. Qe4+ {[%clk
0:00:29.9]} 37... g6 {[%clk 0:00:19.6]} 38. Rf3 {[%clk 0:00:18.8]} 38... b3
{[%clk 0:00:14.7]} 39. Qc4 {[%clk 0:00:18]} 39... b2 {[%clk 0:00:03.5]} 40.
Rxf7+ {[%clk 0:00:17.4]} 40... Qxf7 {[%clk 0:00:03.7]} 41. Qxf7+ {[%clk
0:00:18.3]} 41... Kh8 {[%clk 0:00:03.6]} 42. Qe8+ {[%clk 0:00:19.2]} 42... Kh7
{[%clk 0:00:03.2]} 43. Qxb5 {[%clk 0:00:20.1]} 1-0

[Event "*** SCC Grand Prix: Titled Tuesday Blitz"]
[Site "Chess.com"]
[Date "2020.06.02"]
[Round "9"]
[White "Lubov_Gordyk"]
[Black "Shota_Azaladze"]
[Result "1-0"]
[WhiteElo "2598"]
[BlackElo "2801"]
[TimeControl "180+1"]
[EndTime "11:47:34 PDT"]
[Termination "Lubov_Gordyk won by resignation"]

1. e4 {[%clk 0:03:00.9]} 1... g6 {[%clk 0:02:59.8]} 2. d4 {[%clk 0:03:00.3]}
2... Bg7 {[%clk 0:03:00.7]} 3. Nc3 {[%clk 0:03:00.5]} 3... c6 {[%clk 0:03:01.3]}
4. h3 {[%clk 0:03:00.3]} 4... d5 {[%clk 0:03:01.9]} 5. Nf3 {[%clk 0:03:00.5]}
5... Nf6 {[%clk 0:03:02.2]} 6. e5 {[%clk 0:02:59.8]} 6... Ne4 {[%clk 0:03:02.3]}
7. Bd3 {[%clk 0:03:00.4]} 7... Nxc3 {[%clk 0:03:01.9]} 8. bxc3 {[%clk 0:03:01]}
8... c5 {[%clk 0:03:02.8]} 9. O-O {[%clk 0:03:00.1]} 9... c4 {[%clk 0:03:02.7]}
10. Be2 {[%clk 0:03:00.1]} 10... Nc6 {[%clk 0:03:03.2]} 11. Be3 {[%clk
0:02:55.6]} 11... O-O {[%clk 0:03:02]} 12. Qd2 {[%clk 0:02:55.8]} 12... f6
{[%clk 0:03:02.6]} 13. exf6 {[%clk 0:02:54.4]} 13... exf6 {[%clk 0:03:03.5]} 14.
Bf4 {[%clk 0:02:53.4]} 14... Bf5 {[%clk 0:02:59]} 15. Rfe1 {[%clk 0:02:48.8]}
15... Re8 {[%clk 0:02:58.1]} 16. g4 {[%clk 0:02:46.3]} 16... Be4 {[%clk
0:02:54.4]} 17. Nh2 {[%clk 0:02:44.3]} 17... g5 {[%clk 0:02:53.4]} 18. Bg3
{[%clk 0:02:43.8]} 18... Qd7 {[%clk 0:02:43.8]} 19. Nf1 {[%clk 0:02:36]} 19...
Ne7 {[%clk 0:02:39.8]} 20. f3 {[%clk 0:02:31.1]} 20... Bg6 {[%clk 0:02:38.9]}
21. h4 {[%clk 0:02:28.8]} 21... gxh4 {[%clk 0:02:35.9]} 22. Bxh4 {[%clk
0:02:27]} 22... f5 {[%clk 0:02:36.5]} 23. Ng3 {[%clk 0:02:16.6]} 23... fxg4
{[%clk 0:02:27.7]} 24. fxg4 {[%clk 0:02:16.3]} 24... Qd6 {[%clk 0:02:23.3]} 25.
Bf3 {[%clk 0:02:10]} 25... Rf8 {[%clk 0:02:19.8]} 26. Qg2 {[%clk 0:02:05.6]}
26... Bf6 {[%clk 0:02:14]} 27. Bxf6 {[%clk 0:01:49.2]} 27... Rxf6 {[%clk
0:02:14.9]} 28. Re5 {[%clk 0:01:44.9]} 28... Raf8 {[%clk 0:02:10.6]} 29. Rf1
{[%clk 0:01:44.7]} 29... Kg7 {[%clk 0:02:03.4]} 30. Bxd5 {[%clk 0:01:39.1]}
30... Rxf1+ {[%clk 0:02:01]} 31. Nxf1 {[%clk 0:01:38.7]} 31... Nxd5 {[%clk
0:01:53.4]} 32. Qxd5 {[%clk 0:01:33.2]} 32... Qxd5 {[%clk 0:01:53]} 33. Rxd5
{[%clk 0:01:32]} 33... Bxc2 {[%clk 0:01:53.6]} 34. Rd7+ {[%clk 0:01:27.7]} 34...
Rf7 {[%clk 0:01:52.2]} 35. Rxf7+ {[%clk 0:01:24.9]} 35... Kxf7 {[%clk
0:01:53.1]} 36. Ne3 {[%clk 0:01:25]} 36... Bd3 {[%clk 0:01:51.9]} 37. Kf2 {[%clk
0:01:25.2]} 37... Ke6 {[%clk 0:01:50.6]} 38. Kf3 {[%clk 0:01:24.5]} 38... b5
{[%clk 0:01:50.7]} 39. a3 {[%clk 0:01:24.1]} 39... a5 {[%clk 0:01:50.5]} 40. Kf4
{[%clk 0:01:21.9]} 40... h6 {[%clk 0:01:49.7]} 41. Nd1 {[%clk 0:01:14.1]} 41...
Be2 {[%clk 0:01:43.3]} 42. Ne3 {[%clk 0:01:12.1]} 42... Bd3 {[%clk 0:01:41.1]}
43. Nd1 {[%clk 0:01:01.1]} 43... Kd6 {[%clk 0:01:34.7]} 44. Ke3 {[%clk
0:01:00.4]} 44... Kd5 {[%clk 0:01:29.3]} 45. Nf2 {[%clk 0:00:58.2]} 45... Bf1
{[%clk 0:01:17.4]} 46. Ne4 {[%clk 0:00:55.4]} 46... Bg2 {[%clk 0:01:14.2]} 47.
Nf6+ {[%clk 0:00:54.3]} 47... Ke6 {[%clk 0:01:12]} 48. Ng8 {[%clk 0:00:53.9]}
48... Bh3 {[%clk 0:00:50.6]} 49. Nxh6 {[%clk 0:00:53.1]} 49... Kf6 {[%clk
0:00:51]} 50. Kf4 {[%clk 0:00:44.9]} 50... b4 {[%clk 0:00:48.4]} 51. cxb4 {[%clk
0:00:43.4]} 51... axb4 {[%clk 0:00:49.3]} 52. axb4 {[%clk 0:00:42.8]} 52... c3
{[%clk 0:00:46.7]} 53. Ke3 {[%clk 0:00:42.6]} 53... Kg5 {[%clk 0:00:46.6]} 54.
Nf7+ {[%clk 0:00:39.5]} 54... Kxg4 {[%clk 0:00:44.5]} 55. Kd3 {[%clk 0:00:36.8]}
55... Kf5 {[%clk 0:00:44.6]} 56. Kxc3 {[%clk 0:00:36.2]} 56... Bf1 {[%clk
0:00:44.3]} 57. Ne5 {[%clk 0:00:35.9]} 57... Ke4 {[%clk 0:00:44.4]} 58. Nc4
{[%clk 0:00:35.2]} 58... Be2 {[%clk 0:00:43.9]} 59. b5 {[%clk 0:00:34.3]} 59...
Kd5 {[%clk 0:00:44.2]} 60. Nb6+ {[%clk 0:00:32.8]} 60... Kd6 {[%clk 0:00:43.9]}
61. Kb4 {[%clk 0:00:33]} 61... Bf1 {[%clk 0:00:42.9]} 62. Nc4+ {[%clk 0:00:26]}
62... Kd5 {[%clk 0:00:42.8]} 63. Ne3+ {[%clk 0:00:26]} 63... Kxd4 {[%clk
0:00:42.8]} 64. Nxf1 {[%clk 0:00:26.9]} 1-0

[Event "*** SCC Grand Prix: Titled Tuesday Blitz"]
[Site "Chess.com"]
[Date "2020.06.02"]
[Round "9"]
[White "Khamrakulov_Djurabek"]
[Black "ClassyEl"]
[Result "1-0"]
[WhiteElo "2800"]
[BlackElo "2577"]
[TimeControl "180+1"]
[EndTime "11:47:37 PDT"]
[Termination "Khamrakulov_Djurabek won by resignation"]

1. e4 {[%clk 0:03:00.9]} 1... d6 {[%clk 0:02:56.3]} 2. d4 {[%clk 0:03:00.7]}
2... Nf6 {[%clk 0:02:56.1]} 3. Nc3 {[%clk 0:03:01]} 3... c6 {[%clk 0:02:54.9]}
4. Nf3 {[%clk 0:03:01]} 4... Bg4 {[%clk 0:02:53]} 5. Be3 {[%clk 0:02:54.4]} 5...
e6 {[%clk 0:02:52.2]} 6. Bd3 {[%clk 0:02:53]} 6... d5 {[%clk 0:02:52.3]} 7. O-O
{[%clk 0:02:52.5]} 7... Be7 {[%clk 0:02:50.1]} 8. h3 {[%clk 0:02:48.1]} 8... Bh5
{[%clk 0:02:49.9]} 9. e5 {[%clk 0:02:46]} 9... Nfd7 {[%clk 0:02:49.5]} 10. Nb1
{[%clk 0:02:44.2]} 10... c5 {[%clk 0:02:49.3]} 11. c3 {[%clk 0:02:44.4]} 11...
Nc6 {[%clk 0:02:49]} 12. Nbd2 {[%clk 0:02:44.5]} 12... cxd4 {[%clk 0:02:49.3]}
13. cxd4 {[%clk 0:02:44.3]} 13... Qb6 {[%clk 0:02:49.5]} 14. Qe2 {[%clk
0:02:03.7]} 14... Rc8 {[%clk 0:02:48.2]} 15. a3 {[%clk 0:02:00.8]} 15... O-O
{[%clk 0:02:44.4]} 16. b4 {[%clk 0:02:00.2]} 16... a5 {[%clk 0:02:17.7]} 17. b5
{[%clk 0:01:58.7]} 17... Na7 {[%clk 0:02:17.9]} 18. a4 {[%clk 0:01:58.9]} 18...
Rc3 {[%clk 0:02:16]} 19. Nb1 {[%clk 0:01:53]} 19... Rc7 {[%clk 0:02:13.7]} 20.
g4 {[%clk 0:01:36.4]} 20... Bg6 {[%clk 0:02:13.3]} 21. h4 {[%clk 0:01:32.5]}
21... Rfc8 {[%clk 0:02:08.8]} 22. Bxg6 {[%clk 0:01:27.2]} 22... hxg6 {[%clk
0:02:08.6]} 23. h5 {[%clk 0:01:26.6]} 23... Nf8 {[%clk 0:02:04]} 24. h6 {[%clk
0:01:25.2]} 24... Rc2 {[%clk 0:01:45.1]} 25. Qd3 {[%clk 0:01:24.3]} 25... Qd8
{[%clk 0:01:42.8]} 26. Bd2 {[%clk 0:01:18.6]} 26... gxh6 {[%clk 0:01:30.4]} 27.
Bc3 {[%clk 0:01:15.5]} 27... R2xc3 {[%clk 0:01:22.4]} 28. Nxc3 {[%clk
0:01:16.4]} 28... Nh7 {[%clk 0:01:20.3]} 29. Ne2 {[%clk 0:01:14.8]} 29... Rc7
{[%clk 0:01:05.6]} 30. Rac1 {[%clk 0:01:14.3]} 30... Nc8 {[%clk 0:01:04.3]} 31.
Rxc7 {[%clk 0:01:13.7]} 31... Qxc7 {[%clk 0:01:05.2]} 32. Rc1 {[%clk 0:01:13.1]}
32... Qd8 {[%clk 0:01:00.4]} 33. Qc3 {[%clk 0:01:12.9]} 33... Nb6 {[%clk
0:00:58.1]} 34. Qxa5 {[%clk 0:01:12.6]} 34... Ng5 {[%clk 0:00:43.8]} 35. Nxg5
{[%clk 0:01:10.3]} 35... Bxg5 {[%clk 0:00:44]} 36. Rc2 {[%clk 0:01:09.1]} 36...
Kg7 {[%clk 0:00:40.8]} 37. Kg2 {[%clk 0:01:08.6]} 37... h5 {[%clk 0:00:34.3]}
38. f4 {[%clk 0:01:05.3]} 38... Be7 {[%clk 0:00:31.8]} 39. gxh5 {[%clk 0:00:43]}
39... gxh5 {[%clk 0:00:31.7]} 40. Kf3 {[%clk 0:00:43.1]} 40... Kh6 {[%clk
0:00:31.5]} 41. Ng1 {[%clk 0:00:39.2]} 41... Qg8 {[%clk 0:00:20]} 42. Rg2 {[%clk
0:00:38.1]} 42... Qd8 {[%clk 0:00:19.1]} 43. Kg3 {[%clk 0:00:34.5]} 43... Qc7
{[%clk 0:00:19]} 44. Kh2 {[%clk 0:00:34.6]} 44... Bd8 {[%clk 0:00:15.8]} 45. Qb4
{[%clk 0:00:31.4]} 45... Be7 {[%clk 0:00:14]} 46. Qa5 {[%clk 0:00:30.6]} 46...
Bd8 {[%clk 0:00:13.9]} 47. Qd2 {[%clk 0:00:30.7]} 47... Nc4 {[%clk 0:00:13.6]}
48. Qc1 {[%clk 0:00:29.9]} 48... Kh7 {[%clk 0:00:13.1]} 49. f5 {[%clk
0:00:28.8]} 49... exf5 {[%clk 0:00:13.1]} 50. Nh3 {[%clk 0:00:26.9]} 50... Qe7
{[%clk 0:00:12.7]} 51. Ng5+ {[%clk 0:00:26]} 51... Kh8 {[%clk 0:00:12.6]} 52.
Nxf7+ {[%clk 0:00:26]} 52... Qxf7 {[%clk 0:00:12.6]} 53. Qh6+ {[%clk 0:00:26]}
53... Qh7 {[%clk 0:00:13]} 54. Qf8+ {[%clk 0:00:26.2]} 1-0

[Event "*** SCC Grand Prix: Titled Tuesday Blitz"]
[Site "Chess.com"]
[Date "2020.06.02"]
[Round "9"]
[White "baki83"]
[Black "chessplayer9919"]
[Result "0-1"]
[WhiteElo "2792"]
[BlackElo "2523"]
[TimeControl "180+1"]
[EndTime "11:47:38 PDT"]
[Termination "chessplayer9919 won by checkmate"]

1. e4 {[%clk 0:03:00.9]} 1... c6 {[%clk 0:03:00]} 2. d4 {[%clk 0:02:59.2]} 2...
d5 {[%clk 0:03:00.9]} 3. f3 {[%clk 0:02:59.8]} 3... dxe4 {[%clk 0:03:00.3]} 4.
fxe4 {[%clk 0:02:59.6]} 4... e5 {[%clk 0:03:01.2]} 5. Nf3 {[%clk 0:02:39.9]}
5... Bg4 {[%clk 0:03:00.3]} 6. Bc4 {[%clk 0:02:37.7]} 6... Nd7 {[%clk
0:02:59.8]} 7. O-O {[%clk 0:02:24.4]} 7... Ngf6 {[%clk 0:02:57.5]} 8. Kh1 {[%clk
0:02:09.9]} 8... Bd6 {[%clk 0:02:51.2]} 9. c3 {[%clk 0:02:03.7]} 9... O-O {[%clk
0:02:49.8]} 10. Nbd2 {[%clk 0:02:03.5]} 10... b5 {[%clk 0:02:48.3]} 11. Bd3
{[%clk 0:02:02.7]} 11... Qc7 {[%clk 0:02:42.7]} 12. h3 {[%clk 0:02:01.9]} 12...
Bh5 {[%clk 0:02:39.1]} 13. g4 {[%clk 0:02:01.7]} 13... Bg6 {[%clk 0:02:38.4]}
14. Nh4 {[%clk 0:02:00.5]} 14... Rae8 {[%clk 0:02:25.9]} 15. Qf3 {[%clk
0:01:36.8]} 15... exd4 {[%clk 0:01:39.6]} 16. cxd4 {[%clk 0:01:37.7]} 16... c5
{[%clk 0:01:39.7]} 17. Nxg6 {[%clk 0:01:27.2]} 17... fxg6 {[%clk 0:01:32.5]} 18.
Bxb5 {[%clk 0:01:12.8]} 18... cxd4 {[%clk 0:01:29.7]} 19. Bxd7 {[%clk
0:00:49.6]} 19... Qxd7 {[%clk 0:01:21.3]} 20. Qd3 {[%clk 0:00:47.2]} 20... Nxe4
{[%clk 0:01:10.6]} 21. Rxf8+ {[%clk 0:00:45.7]} 21... Bxf8 {[%clk 0:01:11.5]}
22. Nxe4 {[%clk 0:00:45.3]} 22... Qd5 {[%clk 0:01:10.8]} 23. Bd2 {[%clk
0:00:24.1]} 23... Rxe4 {[%clk 0:01:09.6]} 24. Kg1 {[%clk 0:00:22.3]} 24... h5
{[%clk 0:00:38.7]} 25. g5 {[%clk 0:00:22.5]} 25... Be7 {[%clk 0:00:31.2]} 26.
Qb3 {[%clk 0:00:20.9]} 26... Qxb3 {[%clk 0:00:27]} 27. axb3 {[%clk 0:00:21.8]}
27... Re2 {[%clk 0:00:23.5]} 28. Rxa7 {[%clk 0:00:17.8]} 28... Bc5 {[%clk
0:00:23.5]} 29. Rc7 {[%clk 0:00:16.6]} 29... Rxd2 {[%clk 0:00:15.4]} 30. Rxc5
{[%clk 0:00:16.5]} 30... Rxb2 {[%clk 0:00:16]} 31. Rc8+ {[%clk 0:00:12.9]} 31...
Kh7 {[%clk 0:00:15.1]} 32. Rd8 {[%clk 0:00:11.5]} 32... Rxb3 {[%clk 0:00:15.3]}
33. Kg2 {[%clk 0:00:11.8]} 33... d3 {[%clk 0:00:11.5]} 34. Kf2 {[%clk
0:00:10.7]} 34... Rb2+ {[%clk 0:00:08.3]} 35. Kg3 {[%clk 0:00:07.1]} 35... d2
{[%clk 0:00:08.6]} 36. h4 {[%clk 0:00:06.5]} 36... Rb3+ {[%clk 0:00:06.1]} 37.
Kg2 {[%clk 0:00:06.4]} 37... Rb4 {[%clk 0:00:05.2]} 38. Kh3 {[%clk 0:00:06.6]}
38... Rb2 {[%clk 0:00:04.5]} 39. Kg2 {[%clk 0:00:06.6]} 39... d1=Q+ {[%clk
0:00:03.5]} 40. Kg3 {[%clk 0:00:07.5]} 40... Qxd8 {[%clk 0:00:03.6]} 41. Kh3
{[%clk 0:00:06.1]} 41... Qd3# {[%clk 0:00:03.7]} 0-1

[Event "*** SCC Grand Prix: Titled Tuesday Blitz"]
[Site "Chess.com"]
[Date "2020.06.02"]
[Round "9"]
[White "northridgehawk"]
[Black "arminmusovic"]
[Result "1/2-1/2"]
[WhiteElo "2320"]
[BlackElo "2524"]
[TimeControl "180+1"]
[EndTime "11:47:38 PDT"]
[Termination "Game drawn by repetition"]

1. e4 {[%clk 0:03:00.9]} 1... c6 {[%clk 0:02:59]} 2. d4 {[%clk 0:02:55.2]} 2...
d5 {[%clk 0:02:59.9]} 3. e5 {[%clk 0:02:55.7]} 3... c5 {[%clk 0:02:59.8]} 4. Nd2
{[%clk 0:02:55.5]} 4... cxd4 {[%clk 0:02:55.4]} 5. Ngf3 {[%clk 0:02:51.5]} 5...
Nc6 {[%clk 0:02:54]} 6. Bd3 {[%clk 0:02:51.1]} 6... Bg4 {[%clk 0:02:53.9]} 7. a3
{[%clk 0:02:48.2]} 7... e6 {[%clk 0:02:53.5]} 8. O-O {[%clk 0:02:47.3]} 8... a6
{[%clk 0:02:52.4]} 9. b4 {[%clk 0:02:45.9]} 9... Nxe5 {[%clk 0:02:49.5]} 10. Re1
{[%clk 0:02:43.1]} 10... Nxd3 {[%clk 0:02:47.5]} 11. cxd3 {[%clk 0:02:42.4]}
11... Nf6 {[%clk 0:02:45.1]} 12. Bb2 {[%clk 0:02:42.1]} 12... Bd6 {[%clk
0:02:44.7]} 13. Bxd4 {[%clk 0:02:41.1]} 13... O-O {[%clk 0:02:44.9]} 14. h3
{[%clk 0:02:38.8]} 14... Bh5 {[%clk 0:02:45.2]} 15. Qb3 {[%clk 0:02:37.6]} 15...
Re8 {[%clk 0:02:42.6]} 16. Ne5 {[%clk 0:02:37.4]} 16... Rc8 {[%clk 0:02:40.6]}
17. Rac1 {[%clk 0:02:28.5]} 17... Nd7 {[%clk 0:02:28.3]} 18. f4 {[%clk 0:02:14]}
18... Nxe5 {[%clk 0:02:24.3]} 19. fxe5 {[%clk 0:02:11.6]} 19... Bb8 {[%clk
0:02:15.8]} 20. Qb2 {[%clk 0:02:06.1]} 20... Qg5 {[%clk 0:02:07.1]} 21. Nf1
{[%clk 0:01:49.6]} 21... h6 {[%clk 0:01:56.8]} 22. Re3 {[%clk 0:01:15.3]} 22...
Bg6 {[%clk 0:01:10.3]} 23. Rce1 {[%clk 0:01:14.1]} 23... b5 {[%clk 0:01:01.8]}
24. Nd2 {[%clk 0:01:12.2]} 24... Qe7 {[%clk 0:00:55.2]} 25. Nb3 {[%clk
0:01:11.3]} 25... Ba7 {[%clk 0:00:50]} 26. Nc5 {[%clk 0:01:08]} 26... Bxc5
{[%clk 0:00:49.7]} 27. Bxc5 {[%clk 0:01:07.8]} 27... Qh4 {[%clk 0:00:49.9]} 28.
Kh2 {[%clk 0:01:03.9]} 28... Qf4+ {[%clk 0:00:48]} 29. g3 {[%clk 0:01:00.3]}
29... Qg5 {[%clk 0:00:48.2]} 30. Qd4 {[%clk 0:00:57.5]} 30... Bf5 {[%clk
0:00:43.1]} 31. g4 {[%clk 0:00:54.3]} 31... Bg6 {[%clk 0:00:40.5]} 32. Kg3
{[%clk 0:00:54.2]} 32... h5 {[%clk 0:00:40.8]} 33. Rf1 {[%clk 0:00:49]} 33...
Rc6 {[%clk 0:00:38.1]} 34. Rf4 {[%clk 0:00:46.3]} 34... h4+ {[%clk 0:00:25.6]}
35. Kh2 {[%clk 0:00:44.1]} 35... f5 {[%clk 0:00:20.3]} 36. exf6 {[%clk
0:00:37.4]} 36... e5 {[%clk 0:00:20.6]} 37. Qxd5+ {[%clk 0:00:37]} 37... Bf7
{[%clk 0:00:19.2]} 38. Rf5 {[%clk 0:00:26.3]} 38... Qxf5 {[%clk 0:00:16.5]} 39.
Qxc6 {[%clk 0:00:26.1]} 39... Qf4+ {[%clk 0:00:13.4]} 40. Kg2 {[%clk 0:00:23.1]}
40... gxf6 {[%clk 0:00:13.5]} 41. Rf3 {[%clk 0:00:19.9]} 41... Qd2+ {[%clk
0:00:12.8]} 42. Rf2 {[%clk 0:00:19.8]} 42... Qxd3 {[%clk 0:00:13.2]} 43. Qxf6
{[%clk 0:00:19.9]} 43... Qg3+ {[%clk 0:00:13.3]} 44. Kf1 {[%clk 0:00:16.2]}
44... Bc4+ {[%clk 0:00:11.1]} 45. Ke1 {[%clk 0:00:14.3]} 45... Qc3+ {[%clk
0:00:10.2]} 46. Rd2 {[%clk 0:00:13.1]} 46... Qc1+ {[%clk 0:00:09.4]} 47. Rd1
{[%clk 0:00:13.2]} 47... Qc3+ {[%clk 0:00:07.8]} 48. Rd2 {[%clk 0:00:12.2]}
48... Qc1+ {[%clk 0:00:07.4]} 49. Rd1 {[%clk 0:00:12]} 49... Qc3+ {[%clk
0:00:08.3]} 50. Rd2 {[%clk 0:00:12.1]} 1/2-1/2